[Event "December 12 Early 2023"]
[Site "https://www.chess.com"]
[Date "2023.12.12"]
[Round "5"]
[White "Pakleza, Zbigniew"]
[Black "Baziuk, Vladyslav"]
[Result "1-0"]
[Board "67"]
[TimeControl "180+1"]
[WhiteFideId "1119290"]
[BlackFideId "34107940"]
[WhiteElo "2691"]
[BlackElo "2529"]
[WhiteTeam "POL"]
[BlackTeam "UKR"]
[WhiteClock "0:00:15"]
[BlackClock "0:00:05"]

1. d4 {[%clk 0:03:00]}  c5 {[%clk 0:03:00]} 2. c3 {[%clk 0:03:00]}  Nf6 {[%clk 0:02:58]} 3. Nf3 {[%clk 0:03:00]}  cxd4 {[%clk 0:02:57]} 4. cxd4 {[%clk 0:03:00]}  b6 {[%clk 0:02:57]} 5. Nc3 {[%clk 0:02:59]}  Bb7 {[%clk 0:02:58]} 6. Bf4 {[%clk 0:03:00]}  g6 {[%clk 0:02:58]} 7. e3 {[%clk 0:03:00]}  Bg7 {[%clk 0:02:58]} 8. h3 {[%clk 0:02:58]}  O-O {[%clk 0:02:58]} 9. Be2 {[%clk 0:02:57]}  d6 {[%clk 0:02:58]} 10. O-O {[%clk 0:02:57]}  Nbd7 {[%clk 0:02:54]} 11. Qa4 {[%clk 0:02:54]}  Ne4 {[%clk 0:02:47]} 12. Nxe4 {[%clk 0:02:50]}  Bxe4 {[%clk 0:02:45]} 13. Rac1 {[%clk 0:02:47]}  Bb7 {[%clk 0:02:30]} 14. Rc2 {[%clk 0:02:18]}  e5 {[%clk 0:02:15]} 15. Bg5 {[%clk 0:02:14]}  f6 {[%clk 0:02:11]} 16. Bh4 {[%clk 0:02:13]}  Rc8 {[%clk 0:01:41]} 17. Rxc8 {[%clk 0:01:57]}  Qxc8 {[%clk 0:01:42]} 18. Qxa7 {[%clk 0:01:52]}  Qc6 {[%clk 0:01:19]} 19. Bb5 {[%clk 0:01:12]}  Qxb5 {[%clk 0:01:03]} 20. Qxb7 {[%clk 0:01:12]}  h6 {[%clk 0:00:40]} 21. b3 {[%clk 0:00:59]}  Rf7 {[%clk 0:00:39]} 22. Rc1 {[%clk 0:00:54]}  f5 {[%clk 0:00:35]} 23. Rc7 {[%clk 0:00:45]}  g5 {[%clk 0:00:26]} 24. Bxg5 {[%clk 0:00:41]}  hxg5 {[%clk 0:00:26]} 25. Nxg5 {[%clk 0:00:41]}  Re7 {[%clk 0:00:21]} 26. Qc8+ {[%clk 0:00:32]}  Bf8 {[%clk 0:00:18]} 27. d5 {[%clk 0:00:27]}  Qxd5 {[%clk 0:00:10]} 28. Rxd7 {[%clk 0:00:26]}  Rxd7 {[%clk 0:00:09]} 29. Qxd7 {[%clk 0:00:26]}  Bg7 {[%clk 0:00:05]} 30. Qe8+ {[%clk 0:00:15]}  Bf8 {[%clk 0:00:05]} 1-0

[Event "December 12 Early 2023"]
[Site "https://www.chess.com"]
[Date "2023.12.12"]
[Round "5"]
[White "Tokhirjonova, Gulrukhbegim"]
[Black "Kozelov, Roman"]
[Result "1-0"]
[Board "70"]
[TimeControl "180+1"]
[WhiteFideId "14203626"]
[BlackFideId "14133377"]
[WhiteElo "2664"]
[BlackElo "2436"]
[WhiteTeam "USA"]
[BlackTeam "UKR"]
[WhiteClock "0:00:18"]
[BlackClock "0:00:00"]

1. Nf3 {[%clk 0:02:59]}  Nf6 {[%clk 0:02:59]} 2. g3 {[%clk 0:02:58]}  d5 {[%clk 0:02:58]} 3. Bg2 {[%clk 0:02:59]}  Nc6 {[%clk 0:02:58]} 4. O-O {[%clk 0:02:59]}  e5 {[%clk 0:02:57]} 5. d3 {[%clk 0:02:59]}  Bd6 {[%clk 0:02:57]} 6. Nbd2 {[%clk 0:02:56]}  Be6 {[%clk 0:02:56]} 7. e4 {[%clk 0:02:56]}  h6 {[%clk 0:02:54]} 8. Re1 {[%clk 0:02:56]}  O-O {[%clk 0:02:53]} 9. c3 {[%clk 0:02:54]}  Qd7 {[%clk 0:02:51]} 10. Nh4 {[%clk 0:02:52]}  Bg4 {[%clk 0:02:48]} 11. Qc2 {[%clk 0:02:51]}  dxe4 {[%clk 0:02:46]} 12. dxe4 {[%clk 0:02:50]}  Ne7 {[%clk 0:02:35]} 13. Nc4 {[%clk 0:02:48]}  Rad8 {[%clk 0:02:26]} 14. Be3 {[%clk 0:02:46]}  Qb5 {[%clk 0:02:23]} 15. b3 {[%clk 0:02:43]}  Be6 {[%clk 0:02:13]} 16. Bf1 {[%clk 0:02:41]}  Qc6 {[%clk 0:01:57]} 17. f3 {[%clk 0:02:41]}  b6 {[%clk 0:01:54]} 18. a4 {[%clk 0:02:35]}  a5 {[%clk 0:01:53]} 19. Rad1 {[%clk 0:02:21]}  Ng6 {[%clk 0:01:45]} 20. Nf5 {[%clk 0:02:17]}  Bxf5 {[%clk 0:01:45]} 21. exf5 {[%clk 0:02:18]}  Ne7 {[%clk 0:01:44]} 22. Bg2 {[%clk 0:02:16]}  Qd7 {[%clk 0:01:33]} 23. g4 {[%clk 0:02:16]}  Ned5 {[%clk 0:01:29]} 24. Bc1 {[%clk 0:02:10]}  Rfe8 {[%clk 0:01:25]} 25. h4 {[%clk 0:02:03]}  Nf4 {[%clk 0:01:07]} 26. Bf1 {[%clk 0:01:48]}  Qc6 {[%clk 0:00:55]} 27. Kf2 {[%clk 0:01:31]}  Bc5+ {[%clk 0:00:35]} 28. Kg3 {[%clk 0:01:30]}  Rxd1 {[%clk 0:00:32]} 29. Rxd1 {[%clk 0:01:27]}  N6h5+ {[%clk 0:00:26]} 30. gxh5 {[%clk 0:01:19]}  Nxh5+ {[%clk 0:00:25]} 31. Kg2 {[%clk 0:01:02]}  e4 {[%clk 0:00:21]} 32. Be2 {[%clk 0:00:53]}  e3 {[%clk 0:00:15]} 33. b4 {[%clk 0:00:30]}  axb4 {[%clk 0:00:10]} 34. cxb4 {[%clk 0:00:30]}  Qf6 {[%clk 0:00:06]} 35. bxc5 {[%clk 0:00:18]}  Qxh4 {[%clk 0:00:00]} 36. Bxe3 {[%clk 0:00:18]} 1-0

[Event "December 12 Early 2023"]
[Site "https://www.chess.com"]
[Date "2023.12.12"]
[Round "5"]
[White "Vishnu Prasanna. V"]
[Black "Begunov, Konstantin"]
[Result "1-0"]
[Board "71"]
[TimeControl "180+1"]
[WhiteFideId "5030692"]
[BlackFideId "4118510"]
[WhiteElo "2663"]
[BlackElo "2439"]
[WhiteTeam "IND"]
[BlackTeam "RUS"]
[WhiteClock "0:01:38"]
[BlackClock "0:00:00"]

1. c4 {[%clk 0:02:52]}  c6 {[%clk 0:02:59]} 2. Nf3 {[%clk 0:02:51]}  d5 {[%clk 0:03:00]} 3. e3 {[%clk 0:02:52]}  Nf6 {[%clk 0:03:00]} 4. Nc3 {[%clk 0:02:51]}  a6 {[%clk 0:03:00]} 5. d4 {[%clk 0:02:49]}  Bg4 {[%clk 0:02:59]} 6. h3 {[%clk 0:02:48]}  Bxf3 {[%clk 0:02:59]} 7. Qxf3 {[%clk 0:02:49]}  e6 {[%clk 0:02:59]} 8. a3 {[%clk 0:02:49]}  Nbd7 {[%clk 0:02:58]} 9. Bd2 {[%clk 0:02:47]}  Bd6 {[%clk 0:02:50]} 10. g4 {[%clk 0:02:48]}  h6 {[%clk 0:02:38]} 11. h4 {[%clk 0:02:44]}  g6 {[%clk 0:02:31]} 12. g5 {[%clk 0:02:39]}  hxg5 {[%clk 0:02:10]} 13. hxg5 {[%clk 0:02:40]}  Nh5 {[%clk 0:02:10]} 14. e4 {[%clk 0:02:37]}  dxc4 {[%clk 0:01:57]} 15. Bxc4 {[%clk 0:02:34]}  Be7 {[%clk 0:01:58]} 16. e5 {[%clk 0:02:08]}  Bxg5 {[%clk 0:01:50]} 17. Bxg5 {[%clk 0:02:07]}  Qxg5 {[%clk 0:01:51]} 18. Ne4 {[%clk 0:02:08]}  Qe7 {[%clk 0:01:40]} 19. Nd6+ {[%clk 0:02:08]}  Kf8 {[%clk 0:01:40]} 20. O-O-O {[%clk 0:02:08]}  Kg7 {[%clk 0:01:05]} 21. Rdg1 {[%clk 0:02:02]}  c5 {[%clk 0:00:21]} 22. Rxh5 {[%clk 0:01:53]}  Rxh5 {[%clk 0:00:21]} 23. Qxh5 {[%clk 0:01:54]}  cxd4 {[%clk 0:00:22]} 24. Bd3 {[%clk 0:01:46]}  Nf8 {[%clk 0:00:13]} 25. f4 {[%clk 0:01:42]}  Qc7+ {[%clk 0:00:11]} 26. Kb1 {[%clk 0:01:41]}  Qc6 {[%clk 0:00:00]} 27. Qh3 {[%clk 0:01:38]} 1-0

[Event "December 12 Early 2023"]
[Site "https://www.chess.com"]
[Date "2023.12.12"]
[Round "5"]
[White "Zivic, Dragan"]
[Black "Gontcharov, Vladislav"]
[Result "0-1"]
[Board "73"]
[TimeControl "180+1"]
[WhiteFideId "904740"]
[BlackFideId "4123492"]
[WhiteElo "2417"]
[BlackElo "2658"]
[WhiteTeam "SRB"]
[BlackTeam "RUS"]
[WhiteClock "0:02:04"]
[BlackClock "0:01:51"]

1. c4 {[%clk 0:03:00]}  c5 {[%clk 0:02:57]} 2. Nc3 {[%clk 0:03:01]}  Nc6 {[%clk 0:02:56]} 3. Nf3 {[%clk 0:03:01]}  g6 {[%clk 0:02:56]} 4. g3 {[%clk 0:03:02]}  Bg7 {[%clk 0:02:56]} 5. Bg2 {[%clk 0:03:02]}  d6 {[%clk 0:02:56]} 6. d3 {[%clk 0:02:56]}  Nf6 {[%clk 0:02:51]} 7. O-O {[%clk 0:02:54]}  Bf5 {[%clk 0:02:49]} 8. h3 {[%clk 0:02:52]}  h5 {[%clk 0:02:47]} 9. e4 {[%clk 0:02:51]}  Be6 {[%clk 0:02:46]} 10. Bg5 {[%clk 0:02:50]}  Qd7 {[%clk 0:02:44]} 11. Kh2 {[%clk 0:02:48]}  Ng4+ {[%clk 0:02:38]} 12. Kg1 {[%clk 0:02:45]}  Nge5 {[%clk 0:02:33]} 13. Nxe5 {[%clk 0:02:45]}  Bxe5 {[%clk 0:02:29]} 14. Kh2 {[%clk 0:02:41]}  h4 {[%clk 0:02:28]} 15. f4 {[%clk 0:02:31]}  hxg3+ {[%clk 0:02:25]} 16. Kxg3 {[%clk 0:02:28]}  Bd4 {[%clk 0:02:00]} 17. Nd5 {[%clk 0:02:14]}  f6 {[%clk 0:01:52]} 18. Bxf6 {[%clk 0:02:04]}  exf6 {[%clk 0:01:51]} 0-1

[Event "December 12 Early 2023"]
[Site "https://www.chess.com"]
[Date "2023.12.12"]
[Round "5"]
[White "Pertinez Soria, Juan Luis"]
[Black "Mendez Fortes, Eduardo Jesus"]
[Result "0-1"]
[Board "74"]
[TimeControl "180+1"]
[WhiteFideId "2225620"]
[BlackFideId "3502376"]
[WhiteElo "2221"]
[BlackElo "2616"]
[WhiteTeam "ESP"]
[BlackTeam "CUB"]
[WhiteClock "0:00:00"]
[BlackClock "0:01:42"]

1. e4 {[%clk 0:03:00]}  c5 {[%clk 0:02:57]} 2. Nf3 {[%clk 0:03:00]}  d6 {[%clk 0:02:58]} 3. d4 {[%clk 0:02:55]}  cxd4 {[%clk 0:02:59]} 4. Nxd4 {[%clk 0:02:56]}  Nf6 {[%clk 0:02:59]} 5. Nc3 {[%clk 0:02:56]}  a6 {[%clk 0:02:59]} 6. Be3 {[%clk 0:02:47]}  e5 {[%clk 0:02:58]} 7. Nb3 {[%clk 0:02:46]}  Be7 {[%clk 0:02:58]} 8. Qd2 {[%clk 0:02:46]}  Ng4 {[%clk 0:02:55]} 9. O-O-O {[%clk 0:02:41]}  Nxe3 {[%clk 0:02:55]} 10. Qxe3 {[%clk 0:02:40]}  Be6 {[%clk 0:02:55]} 11. Nd5 {[%clk 0:02:40]}  Nd7 {[%clk 0:02:55]} 12. Kb1 {[%clk 0:02:33]}  O-O {[%clk 0:02:52]} 13. g3 {[%clk 0:02:24]}  Nf6 {[%clk 0:02:44]} 14. Nxe7+ {[%clk 0:02:10]}  Qxe7 {[%clk 0:02:44]} 15. Bg2 {[%clk 0:02:06]}  a5 {[%clk 0:02:41]} 16. f4 {[%clk 0:01:54]}  a4 {[%clk 0:02:39]} 17. Nc1 {[%clk 0:01:54]}  b5 {[%clk 0:02:36]} 18. Rd2 {[%clk 0:01:43]}  b4 {[%clk 0:02:35]} 19. f5 {[%clk 0:01:20]}  Bc4 {[%clk 0:02:28]} 20. Rhd1 {[%clk 0:01:16]}  Ra6 {[%clk 0:02:26]} 21. g4 {[%clk 0:01:16]}  Nxg4 {[%clk 0:02:25]} 22. Qg3 {[%clk 0:01:16]}  Nf6 {[%clk 0:02:25]} 23. Bf3 {[%clk 0:01:15]}  Ne8 {[%clk 0:02:21]} 24. Rg1 {[%clk 0:01:14]}  f6 {[%clk 0:02:21]} 25. h4 {[%clk 0:01:14]}  h6 {[%clk 0:02:14]} 26. Bh5 {[%clk 0:01:11]}  Bf7 {[%clk 0:02:13]} 27. Bg6 {[%clk 0:01:11]}  Bxg6 {[%clk 0:02:12]} 28. Qxg6 {[%clk 0:01:09]}  Kh8 {[%clk 0:02:12]} 29. Nd3 {[%clk 0:01:00]}  Rb6 {[%clk 0:02:10]} 30. Nf2 {[%clk 0:00:56]}  Qf7 {[%clk 0:02:10]} 31. Qg3 {[%clk 0:00:54]}  b3 {[%clk 0:02:06]} 32. cxb3 {[%clk 0:00:50]}  axb3 {[%clk 0:02:07]} 33. a3 {[%clk 0:00:50]}  Nc7 {[%clk 0:02:06]} 34. Nd1 {[%clk 0:00:38]}  d5 {[%clk 0:02:01]} 35. exd5 {[%clk 0:00:31]}  Nxd5 {[%clk 0:02:02]} 36. Rxd5 {[%clk 0:00:29]}  Rc6 {[%clk 0:02:01]} 37. Rd3 {[%clk 0:00:26]}  Rfc8 {[%clk 0:02:01]} 38. Nc3 {[%clk 0:00:22]}  R6c7 {[%clk 0:02:01]} 39. Rgd1 {[%clk 0:00:21]}  Qe8 {[%clk 0:01:51]} 40. Qe3 {[%clk 0:00:21]}  Kh7 {[%clk 0:01:50]} 41. R1d2 {[%clk 0:00:20]}  Qh5 {[%clk 0:01:49]} 42. Qf2 {[%clk 0:00:18]}  Rc4 {[%clk 0:01:49]} 43. Rd7 {[%clk 0:00:14]}  Rf4 {[%clk 0:01:45]} 44. Qg1 {[%clk 0:00:14]}  Rg4 {[%clk 0:01:45]} 45. Rg2 {[%clk 0:00:10]}  Rcc4 {[%clk 0:01:44]} 46. Rxg7+ {[%clk 0:00:09]}  Kxg7 {[%clk 0:01:42]} 47. Rxg4+ {[%clk 0:00:08]}  Rxg4 {[%clk 0:01:41]} 48. Qa7+ {[%clk 0:00:06]}  Qf7 {[%clk 0:01:42]} 49. Qxf7+ {[%clk 0:00:06]}  Kxf7 {[%clk 0:01:42]} 50. Ne2 {[%clk 0:00:06]}  Re4 {[%clk 0:01:40]} 51. Nc1 {[%clk 0:00:07]}  Re1 {[%clk 0:01:40]} 52. a4 {[%clk 0:00:08]}  Ke7 {[%clk 0:01:40]} 53. a5 {[%clk 0:00:08]}  Kd7 {[%clk 0:01:41]} 54. a6 {[%clk 0:00:06]}  Kc7 {[%clk 0:01:41]} 55. a7 {[%clk 0:00:07]}  Kb7 {[%clk 0:01:42]} 56. a8=Q+ {[%clk 0:00:08]}  Kxa8 {[%clk 0:01:42]} 57. h5 {[%clk 0:00:00]}  Rd1 {[%clk 0:01:42]} 0-1

[Event "December 12 Early 2023"]
[Site "https://www.chess.com"]
[Date "2023.12.12"]
[Round "5"]
[White "Gruzman, Ilya"]
[Black "Chigaev, Maksim"]
[Result "0-1"]
[Board "75"]
[TimeControl "180+1"]
[WhiteFideId "2812703"]
[BlackFideId "4108116"]
[WhiteElo "2372"]
[BlackElo "2914"]
[WhiteTeam "ISR"]
[BlackTeam "ESP"]
[WhiteClock "0:01:22"]
[BlackClock "0:01:56"]

1. d4 {[%clk 0:02:59]}  Nf6 {[%clk 0:02:59]} 2. c4 {[%clk 0:02:59]}  g6 {[%clk 0:03:00]} 3. Nc3 {[%clk 0:02:59]}  Bg7 {[%clk 0:03:00]} 4. e4 {[%clk 0:02:59]}  d6 {[%clk 0:03:01]} 5. f4 {[%clk 0:02:58]}  O-O {[%clk 0:02:59]} 6. Nf3 {[%clk 0:02:58]}  c5 {[%clk 0:02:59]} 7. d5 {[%clk 0:02:58]}  e6 {[%clk 0:02:59]} 8. Be2 {[%clk 0:02:58]}  exd5 {[%clk 0:02:58]} 9. cxd5 {[%clk 0:02:59]}  Nbd7 {[%clk 0:02:59]} 10. O-O {[%clk 0:02:59]}  Re8 {[%clk 0:02:58]} 11. Nd2 {[%clk 0:02:59]}  a6 {[%clk 0:02:54]} 12. a4 {[%clk 0:02:58]}  Rb8 {[%clk 0:02:54]} 13. Qc2 {[%clk 0:02:51]}  Qc7 {[%clk 0:02:45]} 14. a5 {[%clk 0:02:49]}  b5 {[%clk 0:02:36]} 15. axb6 {[%clk 0:02:49]}  Rxb6 {[%clk 0:02:36]} 16. Bf3 {[%clk 0:02:40]}  c4 {[%clk 0:02:30]} 17. Ne2 {[%clk 0:02:35]}  Rb4 {[%clk 0:02:16]} 18. Kh1 {[%clk 0:02:27]}  Nc5 {[%clk 0:02:13]} 19. Nd4 {[%clk 0:02:26]}  Nxd5 {[%clk 0:02:07]} 20. exd5 {[%clk 0:02:07]}  Bxd4 {[%clk 0:02:07]} 21. Nxc4 {[%clk 0:02:00]}  Bf5 {[%clk 0:02:05]} 22. Qd1 {[%clk 0:01:50]}  Rxc4 {[%clk 0:02:05]} 23. Be2 {[%clk 0:01:50]}  Rc2 {[%clk 0:02:02]} 24. Bf3 {[%clk 0:01:40]}  Bxb2 {[%clk 0:01:59]} 25. Bxb2 {[%clk 0:01:39]}  Rxb2 {[%clk 0:02:00]} 26. g4 {[%clk 0:01:38]}  Be4 {[%clk 0:01:59]} 27. Re1 {[%clk 0:01:22]}  Nd3 {[%clk 0:01:56]} 0-1

[Event "December 12 Early 2023"]
[Site "https://www.chess.com"]
[Date "2023.12.12"]
[Round "5"]
[White "Kamsky, Gata"]
[Black "Tulchynskyi, Feliks"]
[Result "0-1"]
[Board "76"]
[TimeControl "180+1"]
[WhiteFideId "2000024"]
[BlackFideId "34127895"]
[WhiteElo "2898"]
[BlackElo "2512"]
[WhiteTeam "USA"]
[BlackTeam "UKR"]
[WhiteClock "0:00:00"]
[BlackClock "0:00:04"]

1. e4 {[%clk 0:03:00]}  e6 {[%clk 0:02:58]} 2. d4 {[%clk 0:02:58]}  d5 {[%clk 0:02:57]} 3. Nc3 {[%clk 0:02:58]}  Nf6 {[%clk 0:02:56]} 4. e5 {[%clk 0:02:58]}  Nfd7 {[%clk 0:02:57]} 5. f4 {[%clk 0:02:57]}  c5 {[%clk 0:02:57]} 6. Nf3 {[%clk 0:02:57]}  Nc6 {[%clk 0:02:58]} 7. Ne2 {[%clk 0:02:56]}  Be7 {[%clk 0:02:45]} 8. c3 {[%clk 0:02:55]}  O-O {[%clk 0:02:46]} 9. Be3 {[%clk 0:02:55]}  b6 {[%clk 0:02:44]} 10. Ng3 {[%clk 0:02:52]}  a5 {[%clk 0:02:43]} 11. a3 {[%clk 0:02:44]}  f5 {[%clk 0:02:41]} 12. exf6 {[%clk 0:02:42]}  Nxf6 {[%clk 0:02:39]} 13. Ne5 {[%clk 0:02:42]}  Nxe5 {[%clk 0:02:37]} 14. dxe5 {[%clk 0:02:36]}  Ne8 {[%clk 0:02:35]} 15. Bd3 {[%clk 0:02:34]}  g6 {[%clk 0:02:35]} 16. O-O {[%clk 0:02:32]}  Ng7 {[%clk 0:02:35]} 17. c4 {[%clk 0:02:02]}  Bb7 {[%clk 0:02:28]} 18. a4 {[%clk 0:01:59]}  Nf5 {[%clk 0:02:20]} 19. Bf2 {[%clk 0:01:56]}  Qd7 {[%clk 0:02:07]} 20. Qg4 {[%clk 0:01:31]}  Rad8 {[%clk 0:01:46]} 21. b3 {[%clk 0:01:27]}  Kh8 {[%clk 0:01:31]} 22. Rad1 {[%clk 0:01:21]}  Qe8 {[%clk 0:01:23]} 23. Qh3 {[%clk 0:01:16]}  Qf7 {[%clk 0:01:13]} 24. Ne2 {[%clk 0:01:09]}  dxc4 {[%clk 0:00:46]} 25. Bxc4 {[%clk 0:01:08]}  Rxd1 {[%clk 0:00:46]} 26. Rxd1 {[%clk 0:01:07]}  Rd8 {[%clk 0:00:44]} 27. Rxd8+ {[%clk 0:01:07]}  Bxd8 {[%clk 0:00:45]} 28. Qd3 {[%clk 0:01:06]}  Bc7 {[%clk 0:00:40]} 29. g4 {[%clk 0:01:04]}  Ng7 {[%clk 0:00:36]} 30. Bh4 {[%clk 0:01:04]}  Bc6 {[%clk 0:00:28]} 31. Bf6 {[%clk 0:01:02]}  Qd7 {[%clk 0:00:24]} 32. Qxd7 {[%clk 0:00:58]}  Bxd7 {[%clk 0:00:25]} 33. Nc3 {[%clk 0:00:57]}  Kg8 {[%clk 0:00:24]} 34. Ne4 {[%clk 0:00:56]}  h6 {[%clk 0:00:18]} 35. Kf2 {[%clk 0:00:56]}  Ne8 {[%clk 0:00:18]} 36. Ke3 {[%clk 0:00:55]}  Kf7 {[%clk 0:00:18]} 37. g5 {[%clk 0:00:53]}  h5 {[%clk 0:00:17]} 38. Nc3 {[%clk 0:00:48]}  Bc6 {[%clk 0:00:16]} 39. Nb5 {[%clk 0:00:46]}  Bxb5 {[%clk 0:00:13]} 40. Bxb5 {[%clk 0:00:45]}  Ng7 {[%clk 0:00:11]} 41. Kd3 {[%clk 0:00:41]}  Nf5 {[%clk 0:00:11]} 42. Bd7 {[%clk 0:00:39]}  Nd4 {[%clk 0:00:10]} 43. Kc4 {[%clk 0:00:39]}  Bb8 {[%clk 0:00:09]} 44. h3 {[%clk 0:00:37]}  Bc7 {[%clk 0:00:10]} 45. Bc8 {[%clk 0:00:35]}  Ke8 {[%clk 0:00:08]} 46. Bb7 {[%clk 0:00:34]}  Kf8 {[%clk 0:00:06]} 47. Be4 {[%clk 0:00:33]}  Kf7 {[%clk 0:00:07]} 48. Bd3 {[%clk 0:00:31]}  Bb8 {[%clk 0:00:05]} 49. Bd8 {[%clk 0:00:31]}  Ba7 {[%clk 0:00:05]} 50. Bc7 {[%clk 0:00:30]}  Kg7 {[%clk 0:00:04]} 51. Bd6 {[%clk 0:00:31]}  Kf7 {[%clk 0:00:05]} 52. Be4 {[%clk 0:00:30]}  Kg7 {[%clk 0:00:05]} 53. Bg2 {[%clk 0:00:25]}  Kf7 {[%clk 0:00:05]} 54. Be4 {[%clk 0:00:24]}  Kg7 {[%clk 0:00:05]} 55. Bd3 {[%clk 0:00:24]}  Kf7 {[%clk 0:00:05]} 56. Kc3 {[%clk 0:00:25]}  Kg7 {[%clk 0:00:05]} 57. Bc4 {[%clk 0:00:25]}  Kf7 {[%clk 0:00:06]} 58. Kd3 {[%clk 0:00:26]}  Kg7 {[%clk 0:00:05]} 59. Ke4 {[%clk 0:00:26]}  Kf7 {[%clk 0:00:06]} 60. Bc7 {[%clk 0:00:25]}  Kg7 {[%clk 0:00:05]} 61. Ke3 {[%clk 0:00:23]}  Kf7 {[%clk 0:00:06]} 62. Kd3 {[%clk 0:00:23]}  Ke7 {[%clk 0:00:06]} 63. Ke4 {[%clk 0:00:21]}  Kf7 {[%clk 0:00:06]} 64. Bd8 {[%clk 0:00:20]}  Ke8 {[%clk 0:00:05]} 65. Bc7 {[%clk 0:00:18]}  Kd7 {[%clk 0:00:05]} 66. Bd6 {[%clk 0:00:18]}  Ke8 {[%clk 0:00:05]} 67. Kd3 {[%clk 0:00:18]}  Kd7 {[%clk 0:00:06]} 68. Kc3 {[%clk 0:00:18]}  Ke8 {[%clk 0:00:06]} 69. Bd3 {[%clk 0:00:18]}  Kf7 {[%clk 0:00:07]} 70. Kc4 {[%clk 0:00:18]}  Kg7 {[%clk 0:00:07]} 71. Bc7 {[%clk 0:00:18]}  Kf7 {[%clk 0:00:07]} 72. Bd8 {[%clk 0:00:17]}  Kg7 {[%clk 0:00:08]} 73. Be4 {[%clk 0:00:17]}  Kf7 {[%clk 0:00:08]} 74. Bf6 {[%clk 0:00:17]}  Bb8 {[%clk 0:00:08]} 75. b4 {[%clk 0:00:16]}  axb4 {[%clk 0:00:07]} 76. a5 {[%clk 0:00:16]}  bxa5 {[%clk 0:00:07]} 77. Kxc5 {[%clk 0:00:16]}  Ne2 {[%clk 0:00:07]} 78. Kb5 {[%clk 0:00:14]}  Nxf4 {[%clk 0:00:06]} 79. h4 {[%clk 0:00:13]}  b3 {[%clk 0:00:05]} 80. Ka4 {[%clk 0:00:13]}  b2 {[%clk 0:00:05]} 81. Kb3 {[%clk 0:00:13]}  Ba7 {[%clk 0:00:06]} 82. Kxb2 {[%clk 0:00:14]}  Bf2 {[%clk 0:00:06]} 83. Kc2 {[%clk 0:00:12]}  Bxh4 {[%clk 0:00:07]} 84. Kd2 {[%clk 0:00:12]}  Nh3 {[%clk 0:00:07]} 85. Ke2 {[%clk 0:00:12]}  Bxg5 {[%clk 0:00:07]} 86. Bh8 {[%clk 0:00:09]}  Nf4+ {[%clk 0:00:07]} 87. Kf3 {[%clk 0:00:09]}  Nd5 {[%clk 0:00:06]} 88. Bc2 {[%clk 0:00:06]}  Nb4 {[%clk 0:00:05]} 89. Ba4 {[%clk 0:00:05]}  Nd3 {[%clk 0:00:05]} 90. Bb5 {[%clk 0:00:03]}  Nc5 {[%clk 0:00:04]} 91. Kg3 {[%clk 0:00:03]}  a4 {[%clk 0:00:04]} 92. Bc4 {[%clk 0:00:03]}  a3 {[%clk 0:00:04]} 93. Kf3 {[%clk 0:00:00]}  Na4 {[%clk 0:00:04]} 0-1

[Event "December 12 Early 2023"]
[Site "https://www.chess.com"]
[Date "2023.12.12"]
[Round "5"]
[White "Gavrilov, Maxim"]
[Black "Durarbayli, Vasif"]
[Result "0-1"]
[Board "77"]
[TimeControl "180+1"]
[WhiteFideId "24271454"]
[BlackFideId "13402935"]
[WhiteElo "2512"]
[BlackElo "2896"]
[WhiteTeam "RUS"]
[BlackTeam "AZE"]
[WhiteClock "0:00:02"]
[BlackClock "0:00:49"]

1. d4 {[%clk 0:03:00]}  d5 {[%clk 0:02:59]} 2. c4 {[%clk 0:03:00]}  c6 {[%clk 0:03:00]} 3. Nc3 {[%clk 0:03:00]}  Nf6 {[%clk 0:03:00]} 4. e3 {[%clk 0:02:59]}  e6 {[%clk 0:03:01]} 5. Nf3 {[%clk 0:02:59]}  Nbd7 {[%clk 0:03:02]} 6. Bd3 {[%clk 0:02:59]}  dxc4 {[%clk 0:02:59]} 7. Bxc4 {[%clk 0:02:58]}  b5 {[%clk 0:02:59]} 8. Bd3 {[%clk 0:02:57]}  b4 {[%clk 0:02:59]} 9. Na4 {[%clk 0:02:50]}  Bb7 {[%clk 0:02:50]} 10. e4 {[%clk 0:02:45]}  c5 {[%clk 0:02:47]} 11. e5 {[%clk 0:02:45]}  Nd5 {[%clk 0:02:43]} 12. O-O {[%clk 0:02:44]}  cxd4 {[%clk 0:02:39]} 13. Nxd4 {[%clk 0:02:45]}  Be7 {[%clk 0:02:37]} 14. Re1 {[%clk 0:02:35]}  O-O {[%clk 0:02:36]} 15. Qh5 {[%clk 0:02:34]}  g6 {[%clk 0:02:37]} 16. Qh3 {[%clk 0:02:26]}  Nc5 {[%clk 0:02:31]} 17. Nxc5 {[%clk 0:02:23]}  Bxc5 {[%clk 0:02:32]} 18. Nf3 {[%clk 0:02:16]}  Qb6 {[%clk 0:02:23]} 19. Rf1 {[%clk 0:01:59]}  Ba6 {[%clk 0:02:15]} 20. Bxa6 {[%clk 0:01:41]}  Qxa6 {[%clk 0:02:15]} 21. Bg5 {[%clk 0:01:28]}  Qd3 {[%clk 0:02:01]} 22. Qh6 {[%clk 0:01:16]}  Rfc8 {[%clk 0:01:53]} 23. Rad1 {[%clk 0:01:00]}  Qf5 {[%clk 0:01:52]} 24. Qh4 {[%clk 0:00:49]}  Bf8 {[%clk 0:01:42]} 25. Bf6 {[%clk 0:00:38]}  Qf4 {[%clk 0:01:30]} 26. Qxf4 {[%clk 0:00:25]}  Nxf4 {[%clk 0:01:31]} 27. Rd2 {[%clk 0:00:22]}  Nd5 {[%clk 0:01:31]} 28. Rfd1 {[%clk 0:00:18]}  a5 {[%clk 0:01:28]} 29. g3 {[%clk 0:00:18]}  a4 {[%clk 0:01:29]} 30. Nd4 {[%clk 0:00:17]}  a3 {[%clk 0:01:25]} 31. bxa3 {[%clk 0:00:16]}  Rxa3 {[%clk 0:01:26]} 32. Nb5 {[%clk 0:00:15]}  Ra5 {[%clk 0:01:22]} 33. Nd4 {[%clk 0:00:11]}  Nc3 {[%clk 0:01:22]} 34. Rc1 {[%clk 0:00:09]}  Rca8 {[%clk 0:01:12]} 35. Nc6 {[%clk 0:00:09]}  Rxa2 {[%clk 0:01:12]} 36. Rd7 {[%clk 0:00:06]}  Ne2+ {[%clk 0:01:03]} 37. Kg2 {[%clk 0:00:06]}  Nxc1 {[%clk 0:01:03]} 38. Rb7 {[%clk 0:00:03]}  Nd3 {[%clk 0:01:02]} 39. Nb8 {[%clk 0:00:02]}  Rxf2+ {[%clk 0:01:01]} 40. Kh3 {[%clk 0:00:02]}  h5 {[%clk 0:00:55]} 41. Nc6 {[%clk 0:00:02]}  Raa2 {[%clk 0:00:54]} 42. g4 {[%clk 0:00:01]}  Rf3+ {[%clk 0:00:53]} 43. Kh4 {[%clk 0:00:01]}  Rxh2+ {[%clk 0:00:51]} 44. Kg5 {[%clk 0:00:01]}  hxg4 {[%clk 0:00:52]} 45. Ne7+ {[%clk 0:00:01]}  Bxe7 {[%clk 0:00:51]} 46. Bxe7 {[%clk 0:00:01]}  Rh5+ {[%clk 0:00:49]} 47. Kxg4 {[%clk 0:00:02]}  Nxe5# {[%clk 0:00:49]} 0-1